Cogmind - Beta 12 @@@ ROGUE MODE // 2023.09.03 @ 14:54:07 Player: Jaxz Result: Destroyed by G-34 Mercenary with Small Laser Performance ------------- Evolutions (1) 500 Regions Visited (2) 400 Robots Destroyed (39) 195 Value Destroyed (754) 754 Prototype IDs (0) 0 Alien Tech Used (0) 0 Bonus (46) 46 TOTAL SCORE: 1895 Bonus ------- High Alert Combat Kills 46 Cogmind --------- Core Integrity 0/400 Matter 205/300 Energy 45/100 System Corruption 0% Temperature Cool (80) Movement Core (150) Ox2 Location -9/Materials Parts ------- > --- POWER (1) -------- (None) > --- PROPULSION (3) --- (None) > --- UTILITY (3) ------ Small Storage Unit Power Shielding > --- WEAPON (2) ------- Heavy Assault Rifle > --- INVENTORY (8) ---- Ion Engine Improved Ion Engine Medium Storage Unit Heavy Assault Rifle Heavy Assault Rifle Peak State ------------ > --- POWER ------------ Light Ion Engine > --- PROPULSION ------- Wheel Wheel > --- UTILITY ---------- Small Storage Unit Power Shielding Medium Armor Plating > --- WEAPON ----------- EM Pulse Gun Light Cannon > --- INVENTORY -------- Ion Engine Improved Ion Engine Medium Storage Unit Beam Rifle Heavy Assault Rifle Heavy Assault Rifle Heavy Assault Rifle Grenade Launcher [Rating: 10] Favorites ----------- Power Light Ion Engine Engine Light Ion Engine Propulsion Wheel Wheel Wheel Utility Small Storage Unit Device Seismic Detector Storage Small Storage Unit Protection Power Shielding Weapon Light Cannon Energy Gun EM Pulse Gun Ballistic Gun Light Assault Rifle Ballistic Cannon Light Cannon Launcher Grenade Launcher Build | -11 -10 -9 ------- Run | Jun Mat Mat Slots Evolved 2 | . . 2 Power . | . . . Propulsion 1 | . . 1 Utility 1 | . . 1 Weapon . | . . . Parts Attached 22 | 7 7 8 Power 3 | 1 1 1 Engine 3 | 1 1 1 Core . | . . . Reactor . | . . . Propulsion 4 | 2 2 . Treads . | . . . Leg . | . . . Wheel 4 | 2 2 . Hover . | . . . Flight . | . . . Utility 7 | 2 1 4 Device 1 | 1 . . Storage 3 | 1 . 2 Processor . | . . . Hackware . | . . . Protection 3 | . 1 2 Artifact . | . . . Weapon 8 | 2 3 3 Energy Gun 2 | . 1 1 Energy Cannon . | . . . Ballistic Gun 4 | 2 1 1 Ballistic Cannon 1 | . 1 . Launcher 1 | . . 1 Special Weapon . | . . . Impact Weapon . | . . . Slashing Weapon . | . . . Piercing Weapon . | . . . Special Melee Weapon . | . . . Unidentified Prototypes . | . . . Parts Lost 11 | . 3 8 Power 2 | . 1 1 Propulsion 3 | . 1 2 Utility 2 | . 1 1 Weapon 4 | . . 4 Highest Loss Streak 8 | . 2 8 To Critical Strikes . | . . . Average Slot Usage (%) 89 | . 96 84 Engine 11 | . 13 10 Wheel 22 | . 26 20 Device 3 | . 8 . Storage 12 | . 14 11 Protection 14 | . 4 21 Energy Gun 8 | . 5 10 Ballistic Gun 6 | . 16 . Ballistic Cannon 8 | . 5 10 Naked Turns . | . . . Heaviest Build 22 | 12 14 22 Greatest Support 26 | 26 26 20 Greatest Overweight (x) 7 | . 1 7 Average Overweight (x) . | . . . Largest Inventory Capacity 10 | 8 8 10 Average Capacity 7 | 7 8 8 Most Carried 8 | 8 8 8 Average Carried 6 | 4 6 6 Final Capacity 8 | 8 8 8 Final Carried 7 | 7 6 5 Class Distribution -------------------- 100% | Mutant Dominant Class ---------------- Mutant | -10/Materials Mutant | -9/Materials Resources | -11 -10 -9 ----------- Run | Jun Mat Mat Matter Collected 640 | 286 176 178 Remotely . | . . . Salvage Created 911 | 101 314 496 Parts 73 | 5 23 45 Haulers Intercepted . | . . . Recyclers Shooed 1 | . 1 . Parts Field Recycled . | . . . Retrieved Matter . | . . . Parts Self-Destructed . | . . . Prevented . | . . . Kills | -11 -10 -9 ------- Run | Jun Mat Mat Combat Hostiles Destroyed 28 | . 12 16 Guns 14 | . 8 6 Cannons 7 | . 3 4 AOE 7 | . 1 6 Classes Destroyed 9 | 2 3 4 Worker 2 | . 1 1 Builder 2 | . . 2 Tunneler 2 | 1 . 1 Recycler 1 | 1 . . Operator 2 | . . 2 Watcher 2 | . . 2 Swarmer 15 | . 6 9 Grunt 10 | . 6 4 Sentry 3 | . . 3 Best Kill Streak 7 | 2 5 7 Combat Bots Only 6 | . 5 6 Max Kills in Single Turn 3 | 1 2 3 Gunslinging . | . . . Exploded 3 | . 1 3 Melee . | . . . Uniques/NPCs Destroyed . | . . . Combat | -11 -10 -9 -------- Run | Jun Mat Mat Damage Taken 1543 | . 390 1153 Core 479 | . 76 403 Absorbed by Shields . | . . . Redirected to Shielding 23 | . 3 20 Core Remaining (%) 84 | 100 69 . Volleys Fired 98 | 4 42 52 Largest 2 | 2 2 2 Hottest 75 | 40 75 75 Shots Fired 176 | 8 84 84 Gun 121 | 8 72 41 Cannon 47 | . 12 35 Launcher 8 | . . 8 Special . | . . . Kinetic 116 | 8 72 36 Thermal 8 | . . 8 Explosive 8 | . . 8 Electromagnetic 44 | . 12 32 Robot Hit Streak 9 | 7 9 8 Robot Miss Streak 5 | . 5 5 Penetration Max . | . . . Secondary Targets 3 | . 3 . Max Gunslinging Chain 1 | . 1 . Shots Hit Robots 94 | 7 44 43 Core Hits 52 | 3 21 28 Critical Kills . | . . . Critical Parts Destroyed 2 | . 2 . Critical Strikes 7 | . 2 5 Destroy 2 | . 2 . Blast 4 | . . 4 Corrupt 1 | . . 1 Melee Attacks . | . . . Impact . | . . . Slashing . | . . . Piercing . | . . . Sneak Attacks . | . . . Combat Hostiles . | . . . Follow-up Attacks . | . . . Damage Inflicted 1641 | 74 566 1001 Guns 822 | 74 384 364 Cannons 427 | . 142 285 Explosions 392 | . 40 352 Melee . | . . . Ramming . | . . . Kinetic 792 | 74 433 285 Thermal 113 | . 40 73 Explosive 352 | . . 352 Electromagnetic 384 | . 93 291 Impact . | . . . Slashing . | . . . Piercing . | . . . Highest Corruption . | . . . Average Corruption . | . . . Corruption Purged . | . . . Corruption Blocked . | . . . Overload Shots . | . . . Overflow Damage 9 | . . 9 Projectiles . | . . . Explosions 9 | . . 9 Melee . | . . . Knockbacks 3 | . 2 1 Impact . | . . . Kinetic 3 | . 2 1 Secondary . | . . . Self-Inflicted Damage 36 | . . 36 Shots 1 | . . 1 Rammed . | . . . Targets Rammed . | . . . Kicked . | . . . Crushed . | . . . Highest Temperature 147 | . 108 147 Average Temperature 41 | . 35 44 Received Heat Transfer 399 | . 129 270 Siege Activations . | . . . Robots Corrupted . | . . . Combat Hostiles . | . . . Parts Fried . | . . . Impact Corruptions . | . . . Robots Melted . | . . . Combat Hostiles . | . . . Parts Melted . | . . . Heat Transferred 335 | . 150 185 Parts Sabotaged . | . . . Parts Stolen . | . . . Parts Stripped . | . . . Power Chain Reactions 1 | . 1 . Missiles Intercepted . | . . . Alert | -11 -10 -9 ------- Run | Jun Mat Mat Peak Influence 515 | 10 331 515 Initial 139 | . 6 139 Average 261 | 4 183 347 Maximum Alert Level 2 | . 1 2 Low Security (%) 34 | 100 52 13 Level 1 40 | . 47 42 Level 2 24 | . . 44 Level 3 . | . . . Level 4 . | . . . Level 5 . | . . . High Security . | . . . Max Security . | . . . Squads Dispatched 2 | . 1 1 Investigation 1 | . 1 . Extermination . | . . . Reinforcement 1 | . . 1 Assault . | . . . Garrison . | . . . Intercept . | . . . Searches Triggered . | . . . Construction Impeded . | . . . Haulers Reinforced . | . . . Active Scanning Responses . | . . . Cargo Convoy Interrupts . | . . . Stealth | -11 -10 -9 --------- Run | Jun Mat Mat Distress Signals 3 | . 1 2 Communications Jammed . | . . . Distress Signals . | . . . Times Spotted 44 | . 18 26 Peak Tracking Total 8 | . 8 7 Tactical Retreats 3 | . 1 2 Traps | -11 -10 -9 ------- Run | Jun Mat Mat Traps Triggered 1 | . 1 . Indirectly . | . . . Trap Hack Attempts . | . . . Triggered . | . . . Disarmed . | . . . Reprogrammed . | . . . Reused . | . . . Traps Extracted . | . . . Installed . | . . . Triggered . | . . . Machines | -11 -10 -9 ---------- Run | Jun Mat Mat Machines Disabled 2 | . . 2 Max in Single Turn 1 | . . 1 Machines Repaired . | . . . Machines Sabotaged . | . . . Overloaded Fab Kills . | . . . Hacking | -11 -10 -9 --------- Run | Jun Mat Mat Machines Accessed 9 | . 5 4 Terminals 7 | . 3 4 Fabricators . | . . . Repair Stations . | . . . Recycling Units 2 | . 2 . Scanalyzers . | . . . Garrison Access . | . . . Total Hacks 17 | . 9 8 Successful 10 | . 6 4 Failed 7 | . 3 4 Catastrophic . | . . . Database Lockouts . | . . . Manual . | . . . Terminals 15 | . 7 8 Fabricators . | . . . Repair Stations . | . . . Recycling Units 2 | . 2 . Scanalyzers . | . . . Garrison Access . | . . . Terminal Hacks 8 | . 4 4 Record 1 | . 1 . Robot Analysis 1 | . 1 . Alert Level 2 | . 1 1 Locate Traps 2 | . 1 1 Dispatch Records 1 | . . 1 Zone Layout 1 | . . 1 Fabricator Hacks . | . . . Repair Station Hacks . | . . . Recycling Unit Hacks 2 | . 2 . Report Inventory 2 | . 2 . Scanalyzer . | . . . Garrison Access Hacks . | . . . Unauthorized Hacks . | . . . Terminals . | . . . Fabricators . | . . . Repair Stations . | . . . Recycling Units . | . . . Scanalyzers . | . . . Garrison Access . | . . . Data Cores Recovered . | . . . Used . | . . . Hacking Detections 5 | . 2 3 Full Trace Events . | . . . Feedback Events . | . . . Feedback Blocked . | . . . Robot Schematics Acquired . | . . . Robots Built . | . . . Authchips . | . . . Time . | . . . Total Robot Build Rating . | . . . Part Schematics Acquired . | . . . Parts Built . | . . . Authchips . | . . . Time . | . . . Total Part Build Rating . | . . . Parts Repaired . | . . . Time . | . . . Parts Recycled . | . . . Recycled Matter . | . . . Retrieved Matter . | . . . Retrieved Components . | . . . Parts Scanalyzed . | . . . Part Schematics Acquired . | . . . Parts Damaged . | . . . Bothacking | -11 -10 -9 ------------ Run | Jun Mat Mat Used RIF Installer . | . . . Robots Hacked . | . . . Non-combat . | . . . Combat . | . . . Robot Hacks Applied . | . . . Relay Couplers Released . | . . . Fabnet Peak Effective % . | . . . Robots Rewired . | . . . Allies Hacked . | . . . Hacks Repelled . | . . . Allies | -11 -10 -9 -------- Run | Jun Mat Mat Total Allies . | . . . Largest Group . | . . . Highest-Rated Group . | . . . Highest-Rated Ally . | . . . Total Orders . | . . . Ally Attacks . | . . . Total Damage . | . . . Kills . | . . . Allies Corrupted . | . . . Allies Melted . | . . . Intel | -11 -10 -9 ------- Run | Jun Mat Mat Robot Analysis Total 1 | . 1 . Derelict Logs Recovered . | . . . Drone Launches . | . . . Drone Recoveries . | . . . Exploration | -11 -10 -9 ------------- Run | Jun Mat Mat Turns Passed 906 | 70 329 507 Spaces Moved 682 | 44 214 424 Core 4 | 3 . 1 Treads . | . . . Legs . | . . . Wheels 678 | 41 214 423 Hover . | . . . Flight . | . . . Fastest Speed 50 | 50 80 80 Average Speed 82 | 86 82 82 Slowest Speed 400 | 90 95 400 Overloaded Moves . | . . . Propulsion Burnouts . | . . . Robots Hopped . | . . . Cave-ins Triggered . | . . . Exploration Rate (%) 27 | 3 43 35 Regions Visited 2 Branch Regions . Pre-discovered Areas . | . . . Known Exits Taken . | . . . Unknown Exits Taken 2 | 1 1 . Scrap Searched . | . . . Spaces Dug . | . . . Terrain Destroyed 75 | . 6 69 Melee . | . . . Projectile . | . . . AOE 75 | . 6 69 Terrain Rammed . | . . . Walls Destroyed . | . . . Machines Disabled . | . . . Actions | -11 -10 -9 --------- Run | Jun Mat Mat Total 861 | 67 293 501 Wait 25 | . 18 7 Move 680 | 43 213 424 Hop . | . . . Pick Up 26 | 13 7 6 Fast Attach 2 | 1 1 . Attach 12 | 6 2 4 Detach . | . . . Swap 8 | . 4 4 Drop 10 | . 6 4 Fire 98 | 4 42 52 Melee . | . . . Ram . | . . . Kick . | . . . Crush . | . . . Escape Stasis . | . . . Rewire . | . . . Trap . | . . . Miscellaneous . | . . . Route ------- -11/Junkyard -10/Materials (discovered 2 exits: *Mat x2) -9/Materials (discovered 1 exit: [*Min]) History --------- Turn | Location | Event 8 | -11/Junkyard | Discovered new exit (range 15) 71 | -11/Junkyard | Entered Materials 203 | -10/Materials | Discovered new exit (range 11) 325 | -10/Materials | Build established: Mutant 366 | -10/Materials | Discovered new exit (range 7) 400 | -10/Materials | Entered another Materials area 400 | -9/Materials | Evolved 2 slots: Propulsion x1, Utility x1 617 | -9/Materials | Discovered new exit (range 15) 893 | -9/Materials | Core integrity fell below 50% 900 | -9/Materials | Core integrity fell below 20% 907 | -9/Materials | Destroyed by G-34 Mercenary with Small Laser Last Messages --------------- 00883_ Grenade Launcher destroyed. 00883_ Critical hit (Burn: +37). 00887_ Lgt. Cannon destroyed. 00888_ The unstable cave ceiling collapses. 00889_ U-05 Engineer builds a Wall. 00894_ The unstable cave ceiling collapses. 00894_ U-05 Engineer lays Concrete. 00895_ Critical hit (Burn: +37). 00895_ U-05 Engineer lays Concrete. 00896_ Y-45 Defender destroyed. 00896_ U-05 Engineer lays Concrete. 00897_ K-01 Serf collects debris. 00898_ U-05 Engineer lays Concrete. 00900_ The unstable cave ceiling collapses. 00900_ U-05 Engineer lays Concrete. 00902_ K-01 Serf collects debris. 00903_ U-05 Engineer lays Concrete. 00904_ U-05 Engineer builds a Wall. 00904_ Beam Rifle destroyed. 00905_ K-01 Serf collects debris. Map ----- +----------------------------------------------------+ | ?????????????????????????????????????????????????? | | ??????????????????????????????????????????????#### | | ??????????????????????????????????????????????# | | ??????????????????????????????????????????????# | | ??????????????????????????????????????????????# % | | ??????????????????????????????????????????????# !$ | | ??????????????????????????????????????????????# = | | ??????????????????????????????????????????????# | | ?????????????????????????????????????##???????# = | | ?????????????????????????????????????# ##### *% | | ????????????????????????? ?????????# = | | ????????????????????????? #????????# ! | | ??????????????????????### a##???????# ##### | | ?????????????????????## #????????????????##+# | | ?????????????????????# ##??############## | | ?????????????????????# !k ?? # # | | ?????????????????????? %=s g ???? #"" # | | ?????????????????????? %[ ????? #"T ] # " | | ??????????????????????# g ??????# #"" # " | | ??????????????????????? # ??????#^^^# # " | | ??????????????????????? #??????# # """ # | | ??????????????????????## ##???#### # """ # | | ??????????????????????# #??##! # """ #### | | ??????????????????????# #??# + # | | ???????????????????????## #???#! # """ # | | ???????????????????????# @ #???#! # """ # | | ??????????????????????## #???#! # """ # | | ??????????????????????# ##???##! # # | | ??????????????????????# #?????#### ! ######## | | ??????????????????????# s#???????# [ = ####### | | ??????????????????????# #???????# * | | ??????????????????????# #??????# | | ?????????????????????? s= # #?????# | | ??????????????# # #%su ####### ########## | | ??????????? *%= #######????????? | | ??????????? #????????####### | | ??????????? u #????????# | | ??????????? ### # #### #????????# | | ????????????# ! ??# ### #????????# " | | ????????????# ???##?# ###+###### " | | ????????????# """" """"??????# # " | | ????????????? """" """"??????# # [[ | | ????????????????"" "?????????# """ """ / [[!* | | ???????????????? ????????????# """ """ # [[!= | | ?????????????????????????????# """ """ ####### | | ??????????????????????######## #?????# | | ??????????????????????# + ####### | | ??????????????????????# T ! ## | | ??????????????????????# ## | | ??????????????????????+ """ ## """ """ """ "" | +----------------------------------------------------+ Best States ------------- Heat Dissipation 28 Energy Generation 10 Energy Capacity 125 Matter Stores 300 Matter Capacity 300 Sight Range 16 Terrain Scan Density 10 Armor Coverage 225 Power Shielding 33 Evasion (%) 44 Item Schematics ----------------- None Robot Schematics ------------------ None Fabricated ------------ Nothing Alien Tech Used ----------------- None Achievements -------------- None Challenges ------------ None Game ------ Seed FissionCoolantPick Manual? 0 Play Time 00:28:08 Cumulative 37.6 hours Start 2023.09.03 @ 14:27:32 End 2023.09.03 @ 14:54:07 Sessions 1 Manual Loads 0 Difficulty Rogue Special Mode None Game No. 54 Rogue 46 Adventurer 3 Explorer 5 Win Type - Total 0 Types 0/0/0/0/0/0/0/0/0 Lore% 10 Gallery% 26 Achievement% 16 Wizard Run 0 Options --------- ASCII 0 Keyboard 0 Movement Mouse Keybinds 0 Fullscreen 1 Font 18/SmallcapsGlow Map View 76x50 Tactical HUD 1 Map Filters NONE Filters NONE Steam 1 RUN: b055c65b-c284-4d75-874d-1a05ebdfcddc